[Event "GCT Superbet Romania 2024"]
[Site "Bucharest"]
[Date "2024.06.26"]
[Round "1.1"]
[White "Firouzja, Alireza"]
[Black "Caruana, Fabiano"]
[Result "0-1"]
[ECO "A45"]
[WhiteElo "2737"]
[BlackElo "2805"]
[Annotator "TA"]
[PlyCount "118"]
[EventDate "2024.06.24"]
[EventType "tourn"]
[EventCountry "ROU"]
[SourceTitle "playchess.com"]
[Source "ChessBase"]
[SourceQuality "1"]
[TimeControl "7200+30"]

{[%evp 53,118,-24,-10,-53,-18,-19,-21,-123,-102,-121,-114,-116,-103,-115,-105,-154,-147,-251,-251,-244,-253,-247,-227,-522,-502,-518,-494,-491,-437,-559,-555,-461,-461,-363,-496,-581,-521,-557,-600,-610,-611,-610,-514,-573,-392,-544,-502,-502,-502,-526,-498,-530,-310,-614,-671,-674,-666,-862,-854,-4072,-4137,-1006,-2844,-4137,-4137,-29963,-6731]} 1. d4 {[%emt 0:00:03]} Nf6 {[%emt 0:00:08]} 2. Bf4 {[%emt 0:00:05]} b6 {[%emt 0:00:39]} (2... d5 3. e3 c5 4. Nf3 Nc6 5. Nbd2 Bg4 6. c3 e6 7. Qb3 Qc8 8. h3 Bh5 9. Be2 Be7 10. g4 Bg6 11. Nh4 Be4 12. f3 c4 13. Qd1 Nh5 14. gxh5 Bxh4+ {½-½ Firouzja,A (2737)-Caruana,F (2805) Norway Chess 12th 2024 (2)}) 3. c4 {[%emt 0:03:35]} Bb7 {[%emt 0:04:34]} 4. Nc3 {[%emt 0:03:55]} d6 {[%emt 0:05:06]} 5. Nf3 {[%emt 0:19:29]} g6 {[%emt 0:12:45]} 6. d5 {[%emt 0:04:03] A45: Trompowsky Attack.} Bg7 {[%emt 0:02:03]} 7. e4 {[%emt 0:00:20]} O-O {[%emt 0:00:29]} 8. Bd3 {[%emt 0:12:19]} e5 $146 {[%emt 0:28:04]} ({Predecessor:} 8... Nbd7 9. O-O e6 10. Rc1 Nc5 11. Bb1 a5 12. b3 Re8 13. Re1 Qd7 14. Qd2 exd5 15. exd5 Rxe1+ 16. Rxe1 {½-½ Bindl,R (2054)-Schmid,P (2074) Mittelfrank Regionalliga Sud-West 2223 2022 (7.2)}) 9. Bd2 {[%emt 0:08:10]} a5 {[%emt 0:02:22]} 10. a3 {[%emt 0:00:55]} Na6 {[%emt 0:00:40]} 11. Bc2 {[%emt 0:10:28]} c5 {[%emt 0:16:42]} 12. Bg5 {[%emt 0:10:50]} h6 {[%emt 0:02:37]} 13. Be3 {[%emt 0:00:41]} Nc7 {[%emt 0:02:16]} 14. h3 {[%emt 0:03:58]} Bc8 {[%emt 0:06:51]} 15. Qd2 {[%emt 0:12:28]} Kh7 {[%emt 0:00:04]} 16. g4 {[%emt 0:03:18]} Rb8 {[%emt 0:04:03]} 17. g5 {[%emt 0:17:06]} hxg5 {[%emt 0:01:15]} 18. Bxg5 {[%emt 0:02:10]} b5 {[%emt 0:03:16]} 19. h4 {[%emt 0:00:49]} Bg4 {[%emt 0:12:40]} 20. Bd1 {[%emt 0:01:12]} Qd7 {[%emt 0:02:48]} 21. h5 {[%emt 0:04:40]} Nxh5 {[%emt 0:00:55]} 22. Nh4 {[%emt 0:02:01]} Bxd1 {[%emt 0:01:37]} 23. Qxd1 {[%emt 0:00:14]} Rh8 {[%emt 0:01:49]} 24. Nf5 {[%emt 0:00:31]} gxf5 {[%emt 0:02:24]} 25. Qxh5+ {[%emt 0:00:51]} Kg8 {[%emt 0:00:03]} 26. Qf3 {[%emt 0:00:04]} Rxh1+ {[%emt 0:03:40]} 27. Qxh1 {[%emt 0:00:20]} f6 {[%emt 0:03:12]} 28. Bd2 {[%emt 0:02:21]} b4 {[%emt 0:05:04]} 29. axb4 {[%emt 0:04:00]} axb4 {[%emt 0:00:03]} 30. Ne2 {[%emt 0:01:36] [#]} (30. Nb5 $11) 30... f4 $1 $17 {[%emt 0:00:25]} 31. Ng1 {[%emt 0:00:38]} Qg4 {[%emt 0:02:58]} 32. Kf1 {[%emt 0:02:44]} Ra8 {[%emt 0:00:24]} 33. Rxa8+ {[%emt 0:00:14]} Nxa8 {[%emt 0:00:03]} 34. Qf3 {[%emt 0:00:38] [#]} (34. f3 $142 Qg5 35. b3) 34... f5 $1 $17 {[%emt 0:03:09]} 35. Qxg4 {[%emt 0:00:05]} (35. exf5 $17 Qxf5 36. b3) 35... fxg4 $19 {[%emt 0:00:04]} 36. f3 {[%emt 0:00:04]} Nb6 {[%emt 0:01:08]} 37. b3 {[%emt 0:00:01]} Nd7 {[%emt 0:00:04]} 38. Be1 $2 {[%emt 0:00:26]} (38. Kg2 gxf3+ 39. Kxf3) 38... gxf3 $19 {[%emt 0:00:42]} 39. Nxf3 {[%emt 0:01:00]} Nf6 {[%emt 0:00:07]} 40. Nd2 {[%emt 0:00:04]} Kf7 {[%emt 0:00:20]} 41. Kg2 {[%emt 0:00:29]} Ng4 {[%emt 0:01:25]} 42. Kf3 {[%emt 0:00:49]} Ne3 {[%emt 0:01:33]} 43. Bf2 {[%emt 0:00:05]} Nc2 {[%emt 0:00:13]} 44. Kg4 {[%emt 0:00:20]} Kg6 {[%emt 0:00:22]} 45. Nf3 {[%emt 0:00:42]} Na1 {[%emt 0:00:16]} 46. Nd2 {[%emt 0:01:15]} Bf6 {[%emt 0:00:53]} 47. Bg1 {[%emt 0:00:33]} Be7 {[%emt 0:01:05]} 48. Bf2 {[%emt 0:00:09]} Bg5 {[%emt 0:00:31]} 49. Be1 {[%emt 0:01:13]} Bd8 {[%emt 0:00:35]} 50. Bf2 {[%emt 0:00:11]} Be7 {[%emt 0:00:07]} 51. Bg1 {[%emt 0:00:34]} Bg5 {[%emt 0:00:36]} 52. Bf2 {[%emt 0:00:16]} Bh6 {[%emt 0:00:16]} 53. Bh4 $2 {[%emt 0:00:21]} (53. Kf3) 53... f3 $19 {[%emt 0:00:34]} 54. Nxf3 {[%emt 0:00:06]} Kf7 {[%emt 0:00:16]} 55. Bg3 {[%emt 0:01:46]} Nxb3 {[%emt 0:00:08]} 56. Bxe5 {[%emt 0:00:04]} dxe5 {[%emt 0:00:06]} 57. Nxe5+ {[%emt 0:00:04]} Ke7 {[%emt 0:00:56]} 58. Nd3 {[%emt 0:01:32]} Be3 {[%emt 0:00:17]} 59. e5 {[%emt 0:00:31]} Nd2 {[%emt 0:00:22]} (59... Na5 $142 60. Kf5 Nxc4 61. d6+ Kd7 62. Ke4 Ke6 63. d7 Kxd7 64. Kd5 Nb6+ 65. Ke4 Bg1 66. Kf5 b3 67. e6+ Ke7 68. Nb2 Bd4 69. Nd3 c4 70. Nb4 b2 71. Nc6+ Kd6 72. Nxd4 b1=Q+ (72... b1=B+ $2 73. Kf4 $19) 73. Kf4 Nd5+ 74. Kg4 Qg1+ 75. Kf3 Qxd4 76. Ke2 Kxe6 77. Kf3 Qe3+ 78. Kg4 Kf6 79. Kh4 Kf5 80. Kh5 Qh3#) 0-1

[Event "GCT Superbet Romania 2024"]
[Site "Bucharest"]
[Date "2024.06.26"]
[Round "1.2"]
[White "Abdusattorov, Nodirbek"]
[Black "Praggnanandhaa R"]
[Result "1/2-1/2"]
[ECO "C78"]
[WhiteElo "2766"]
[BlackElo "2747"]
[Annotator "TA"]
[PlyCount "127"]
[EventDate "2024.06.24"]
[EventType "tourn"]
[EventCountry "ROU"]
[SourceTitle "playchess.com"]
[Source "ChessBase"]
[SourceQuality "1"]
[TimeControl "7200+30"]

{[%evp 42,127,5,7,9,-35,-6,-3,-5,-4,-1,-35,-34,-35,-33,-31,-37,-33,-43,-68,-56,-73,-67,-75,-68,-65,-71,-71,-69,-70,-69,-68,-42,-47,-47,-58,-63,-79,-79,-77,-75,-82,-79,-71,-71,-88,-62,-145,-62,-62,-62,-62,-25,-62,-62,-62,-62,-62,0,-12,0,-62,-12,-12,0,0,0,0,0,0,0,0,0,0,0,0,0,0,0,0,0,0,0,0,0,0,0,0]} 1. e4 {[%emt 0:00:06]} e5 {[%emt 0:01:13]} 2. Nf3 {[%emt 0:02:01]} Nc6 {[%emt 0:00:31]} 3. Bb5 {[%emt 0:01:09]} a6 {[%emt 0:00:07]} 4. Ba4 {[%emt 0:01:09]} Nf6 {[%emt 0:00:09]} 5. O-O {[%emt 0:01:51]} Bc5 {[%emt 0:01:18]} 6. c3 {[%emt 0:01:22]} b5 {[%emt 0:00:14]} 7. Bb3 {[%emt 0:01:26]} d6 {[%emt 0:00:16]} 8. a4 {[%emt 0:00:09]} b4 {[%emt 0:02:48] C78: Ruy Lopez: Archangelsk and Möller Defences.} 9. d4 {[%emt 0:00:56]} Ba7 {[%emt 0:00:09]} 10. dxe5 {[%emt 0:04:53]} Nxe5 {[%emt 0:00:59]} 11. Nxe5 {[%emt 0:01:22]} dxe5 {[%emt 0:00:03]} 12. Qc2 $146 {[%emt 0:00:58]} ({Predecessor:} 12. Qxd8+ Kxd8 13. cxb4 Rb8 14. b5 Ke7 15. Nc3 Rd8 16. Bc4 axb5 17. Nxb5 Bc5 18. Nxc7 {0-1 Kraemer,M (2574)-Kollars,D (2598) Hobbits Invitational blitz 2021 (2.23)}) 12... O-O {[%emt 0:10:54]} 13. cxb4 {[%emt 0:01:47]} Rb8 {[%emt 0:03:03]} 14. b5 {[%emt 0:13:46]} axb5 {[%emt 0:04:42]} 15. axb5 {[%emt 0:00:05]} Bd4 {[%emt 0:02:47]} 16. Nc3 {[%emt 0:00:10]} Bd7 {[%emt 0:01:54]} 17. Bc4 {[%emt 0:04:29]} Bxc3 {[%emt 0:14:42]} 18. bxc3 {[%emt 0:00:52]} Bxb5 {[%emt 0:00:06]} 19. Rd1 {[%emt 0:00:32]} Qc8 {[%emt 0:11:54]} 20. Bb3 {[%emt 0:07:28]} Bd7 {[%emt 0:10:31]} 21. Ra5 {[%emt 0:12:08]} Qb7 {[%emt 0:04:52]} 22. Bc4 {[%emt 0:14:00]} Bc6 {[%emt 0:07:25]} 23. Bf1 {[%emt 0:07:08]} ({Reject} 23. Rxe5 Bxe4 24. Qa2 Ra8 $15 (24... Bxg2 25. Qa6 $17)) 23... Bxe4 {[%emt 0:06:37]} 24. Qe2 {[%emt 0:00:15]} Rfe8 {[%emt 0:02:47]} 25. Bg5 {[%emt 0:01:35]} Qc6 {[%emt 0:09:28]} 26. Qe3 {[%emt 0:07:00]} Qb6 {[%emt 0:05:48]} 27. Qxb6 {[%emt 0:00:47]} cxb6 {[%emt 0:00:07]} 28. Ra7 {[%emt 0:00:03]} h6 {[%emt 0:03:20]} 29. Bh4 {[%emt 0:07:48]} Rbd8 {[%emt 0:07:04]} 30. Re1 {[%emt 0:00:46]} Bd3 {[%emt 0:02:23]} 31. Rb7 {[%emt 0:01:32]} Bxf1 {[%emt 0:03:25]} 32. Kxf1 {[%emt 0:00:17]} Rd6 {[%emt 0:03:36]} 33. Bxf6 {[%emt 0:00:57]} Rxf6 {[%emt 0:01:49]} 34. h4 {[%emt 0:00:46]} g6 {[%emt 0:00:41]} 35. g3 {[%emt 0:00:33]} Rc6 {[%emt 0:01:37]} 36. Re3 {[%emt 0:00:50]} Ree6 {[%emt 0:00:32]} 37. Rf3 {[%emt 0:00:46]} Rf6 {[%emt 0:00:07]} 38. Re3 {[%emt 0:00:06]} Kg7 {[%emt 0:01:27]} 39. Re7 {[%emt 0:02:29]} Rfe6 {[%emt 0:00:42]} 40. Rxe5 {[%emt 0:00:05]} Rxe7 {[%emt 0:04:36]} 41. Rxe7 {[%emt 0:00:07]} Rxc3 {[%emt 0:00:02]} 42. Rb7 {[%emt 0:00:32]} Rb3 {[%emt 0:00:02]} 43. Kg2 {[%emt 0:00:09]} h5 {[%emt 0:00:24]} 44. Rc7 {[%emt 0:00:26] [#]} (44. f3 $15) 44... Kf6 {[%emt 0:01:17]} ({Black should try} 44... b5 $1 $17 45. Rc6 b4) 45. f3 $1 $15 {[%emt 0:00:15]} Rb4 {[%emt 0:02:12]} 46. Kh3 {[%emt 0:00:21]} b5 {[%emt 0:00:07]} 47. Rb7 {[%emt 0:01:11]} Rb3 {[%emt 0:01:04]} 48. Kg2 {[%emt 0:00:08]} Rb2+ $1 {[%emt 0:00:08]} 49. Kh3 $1 {[%emt 0:00:05]} Rb3 {[%emt 0:00:01]} (49... Rf2 $1 $15) 50. Kg2 $11 {[%emt 0:00:06]} Rb2+ {[%emt 0:01:03]} (50... b4 $11) 51. Kh3 $1 $15 {[%emt 0:00:06]} b4 {[%emt 0:00:04]} ({Better is} 51... Rf2 $1 $15) 52. g4 $11 {[%emt 0:03:49]} b3 {[%emt 0:00:06]} 53. gxh5 {[%emt 0:01:16]} gxh5 {[%emt 0:00:08]} 54. Rb5 $1 {[%emt 0:00:06]} Rb1 {[%emt 0:00:47]} 55. Kg3 $1 {[%emt 0:01:15]} Ke6 {[%emt 0:00:35]} 56. Kf4 $1 {[%emt 0:02:09]} b2 {[%emt 0:00:32]} 57. Rb6+ {[%emt 0:00:41]} Kd5 {[%emt 0:00:07]} 58. Kf5 {[%emt 0:00:34]} Kd4 {[%emt 0:01:09]} 59. f4 {[%emt 0:00:42]} Kc3 {[%emt 0:00:13]} 60. Rc6+ {[%emt 0:00:04]} Kd2 {[%emt 0:01:13]} 61. Rb6 {[%emt 0:00:10]} Kc3 {[%emt 0:01:01]} 62. Rc6+ {[%emt 0:00:05]} Kd2 {[%emt 0:00:02]} 63. Rb6 {[%emt 0:00:09]} Kc3 {[%emt 0:00:03]} 64. Rc6+ {[%emt 0:00:07]} 1/2-1/2

[Event "GCT Superbet Romania 2024"]
[Site "Bucharest"]
[Date "2024.06.26"]
[Round "1.3"]
[White "Vachier-Lagrave, Maxime"]
[Black "Nepomniachtchi, Ian"]
[Result "1/2-1/2"]
[ECO "C42"]
[WhiteElo "2732"]
[BlackElo "2770"]
[Annotator "TA"]
[PlyCount "74"]
[EventDate "2024.06.24"]
[EventType "tourn"]
[EventCountry "ROU"]
[SourceTitle "playchess.com"]
[Source "ChessBase"]
[SourceQuality "1"]
[TimeControl "7200+30"]

{[%evp 18,74,30,20,56,14,13,8,14,10,15,6,2,2,4,7,8,0,0,10,1,6,12,0,-6,0,0,0,0,0,0,0,0,0,0,0,0,0,0,0,0,0,0,0,0,0,0,0,0,0,0,0,0,0,0,0,0,0,0]} 1. e4 {[%emt 0:00:04]} e5 {[%emt 0:00:19]} 2. Nf3 {[%emt 0:00:03]} Nf6 {[%emt 0:00:06]} 3. Nxe5 {[%emt 0:00:04]} d6 {[%emt 0:00:06]} 4. Nf3 {[%emt 0:00:03]} Nxe4 {[%emt 0:00:06]} 5. d4 {[%emt 0:00:04]} d5 {[%emt 0:00:12]} 6. Bd3 {[%emt 0:00:09]} Bd6 {[%emt 0:01:36]} 7. O-O {[%emt 0:00:08]} O-O {[%emt 0:00:06]} 8. Re1 {[%emt 0:00:41]} Bf5 {[%emt 0:02:34]} 9. c4 {[%emt 0:00:14]} c6 {[%emt 0:00:09]} 10. Qb3 {[%emt 0:00:41][%csl LRb7,LRd5]} Qd7 {[%emt 0:01:03]} 11. c5 {[%emt 0:00:57]} Bc7 {[%emt 0:00:06] The position is equal.} 12. Nbd2 {[%emt 0:00:28]} Re8 {[%emt 0:02:32]} 13. Nh4 {[%emt 0:03:10] [#] Nxf5 would now be deadly.} Be6 {[%emt 0:00:51]} 14. Qc2 {[%emt 0:02:31]} Na6 {[%emt 0:01:38]} 15. a3 {[%emt 0:00:23] Against Nb4} Bg4 {[%emt 0:00:22]} 16. Nxe4 {[%emt 0:02:42]} dxe4 {[%emt 0:00:39]} 17. Rxe4 {[%emt 0:00:08]} Rxe4 {[%emt 0:00:08]} 18. Bxe4 {[%emt 0:00:09]} Qxd4 {[%emt 0:00:06]} 19. Be3 {[%emt 0:05:19]} (19. Bxh7+ Kh8 20. g3 Re8) 19... Qf6 {[%emt 0:00:09]} 20. Bxh7+ {[%emt 0:00:35]} (20. Nf5 {simplifies} h6 21. h3 Bxf5 22. Bxf5 Be5 23. Bh7+) 20... Kh8 {[%emt 0:01:15][%cal Bg8h8,Bh8g7,Bg7f7][%mdl 32]} 21. g3 {[%emt 0:00:16]} g6 {[%emt 0:00:54]} 22. Qe4 {[%emt 0:00:13]} Qe6 $1 {[%emt 0:04:18]} 23. Bxg6 {[%emt 0:01:29]} fxg6 {[%emt 0:00:21]} 24. Nxg6+ {[%emt 0:00:05]} Kg7 $1 {[%emt 0:06:04]} 25. Bd4+ {[%emt 0:01:04]} Kf7 {[%emt 0:01:46]} 26. Ne5+ {[%emt 0:01:20]} Bxe5 {[%emt 0:00:05]} 27. Bxe5 {[%emt 0:00:09]} Bf5 {[%emt 0:06:09]} (27... Nxc5 $2 {too greedy.} 28. Qh7+ Ke8 29. Qh8+ Kf7 30. Qg7+ (30. Qxa8 Qxe5 31. Qd8 Nb3 $17) 30... Ke8 31. f3 Bxf3 32. Rf1 $18) 28. Qf4 {[%emt 0:04:34]} Nxc5 {[%emt 0:06:46]} 29. Rd1 {[%emt 0:01:18] [#] Repels Nd3. Strongly threatening Rd6.} Re8 {[%emt 0:03:11]} 30. Bc3 {[%emt 0:04:42]} Ne4 {[%emt 0:03:45] Against Rd6. And now ...Nxc3 would win.} 31. g4 $1 {[%emt 0:03:11]} Nxc3 {[%emt 0:01:39]} 32. bxc3 {[%emt 0:01:34]} Rg8 {[%emt 0:00:07]} 33. h3 {[%emt 0:00:59] Hoping for Kh2.} Qf6 $1 {[%emt 0:00:26][%cal Of5e6]} 34. Qc7+ {[%emt 0:01:40]} Qe7 {[%emt 0:00:12]} 35. Qf4 {[%emt 0:00:15]} Qf6 {[%emt 0:00:15][%cal Of5e6]} 36. Qc7+ {[%emt 0:00:15]} Qe7 {[%emt 0:00:04]} 37. Qf4 {[%emt 0:00:07]} Qf6 {[%emt 0:00:21] A balanced but interesting game.   Weighted Error Value: White=0.03 (flawless) /Black=0.02 (flawless) .  Inaccurate:     	White=1     	---        OK:         	White=13    	Black=8      Best:        	White=5     	Black=11     Strong:       	White=1     	Black=3} 1/2-1/2

[Event "GCT Superbet Romania 2024"]
[Site "Bucharest"]
[Date "2024.06.26"]
[Round "1.4"]
[White "Gukesh D"]
[Black "Deac, Bogdan-Daniel"]
[Result "1-0"]
[ECO "E46"]
[WhiteElo "2763"]
[BlackElo "2680"]
[Annotator "TA"]
[PlyCount "99"]
[EventDate "2024.06.24"]
[EventType "tourn"]
[EventCountry "ROU"]
[SourceTitle "playchess.com"]
[Source "ChessBase"]
[SourceQuality "1"]
[TimeControl "7200+30"]

{[%evp 9,99,0,10,0,0,-22,-28,-31,-6,-16,-15,-13,-8,0,-4,0,0,0,0,-14,0,0,0,0,0,-34,-27,-22,-20,-31,-20,-19,-22,-18,-29,-33,-21,-132,-90,-73,-40,-92,-58,-68,8,-12,0,0,0,-71,-79,-51,0,0,41,12,191,189,167,168,181,169,335,208,344,187,172,181,172,168,176,44,170,178,202,204,195,160,202,196,214,215,255,255,322,312,572,563,1927,1877,1603,882]} 1. d4 {[%emt 0:00:03]} Nf6 {[%emt 0:00:02]} 2. c4 {[%emt 0:00:07]} e6 {[%emt 0:00:02]} 3. Nc3 {[%emt 0:00:11]} Bb4 {[%emt 0:00:02]} 4. e3 {[%emt 0:00:27]} O-O {[%emt 0:00:25]} 5. Bd2 {[%emt 0:00:06]} c5 {[%emt 0:02:12]} 6. d5 {[%emt 0:00:08]} d6 {[%emt 0:01:34]} 7. Bd3 {[%emt 0:00:07]} exd5 {[%emt 0:11:38]} 8. cxd5 {[%emt 0:00:08] Black has an edge.} Nbd7 {[%emt 0:00:04]} 9. Nge2 {[%emt 0:00:05]} Ne5 {[%emt 0:00:52]} 10. Bc2 {[%emt 0:00:06]} Rb8 {[%emt 0:08:27]} 11. O-O {[%emt 0:08:11]} b5 {[%emt 0:02:26]} 12. a3 {[%emt 0:12:25]} Ba5 {[%emt 0:01:57]} 13. h3 {[%emt 0:09:54]} Re8 {[%emt 0:19:32]} 14. Ng3 {[%emt 0:02:31]} Nc4 {[%emt 0:01:24]} 15. Bc1 {[%emt 0:02:33]} Bxc3 {[%emt 0:03:24]} 16. bxc3 {[%emt 0:00:07]} Qa5 {[%emt 0:00:05]} 17. Rb1 {[%emt 0:00:22]} Qxc3 {[%emt 0:11:41]} 18. Rb3 {[%emt 0:00:22]} Qe5 {[%emt 0:18:51]} 19. e4 {[%emt 0:00:47]} h5 {[%emt 0:11:35] And now ...h4 would win.} 20. Bd3 $1 {[%emt 0:09:46] [#] Threatens to win with Bxc4.} Bd7 {[%emt 0:19:23] Hoping for ...h4.} 21. f4 {[%emt 0:02:29]} Qd4+ {[%emt 0:05:05]} 22. Kh1 {[%emt 0:03:42][%cal Og3e2] Black must now prevent Ne2!} Nxe4 {[%emt 0:02:14]} 23. Bxe4 {[%emt 0:30:09]} (23. Nxe4 $11 {was the only way to keep the balance.} Rxe4 24. Bxe4 Qxe4 25. Qxh5) 23... Rxe4 {[%emt 0:00:29]} 24. Nxe4 {[%emt 0:00:07]} Qxe4 {[%emt 0:00:43]} 25. Re1 {[%emt 0:04:37]} ({Better is} 25. Qxh5 $15 g6 26. Qg5 (26. Rg3 Bf5 $17)) 25... Qh7 {[%emt 0:07:17]} 26. Re7 {[%emt 0:04:29]} Rd8 {[%emt 0:00:29] [#]} (26... Qf5 $1 $15) 27. a4 $1 {[%emt 0:18:36]} Kf8 {[%emt 0:01:16]} 28. Qe2 {[%emt 0:01:37]} Nb6 {[%emt 0:00:23]} 29. axb5 {[%emt 0:12:03]} (29. f5 $1 $11 {keeps the balance.} Nxd5 30. Rxd7 Rxd7 31. Qf3) 29... Nxd5 $17 {[%emt 0:00:24]} 30. Re4 {[%emt 0:00:02][%cal Be7e4,Be4a4,Ba4a7][%mdl 32]} Qf5 {[%emt 0:00:37]} (30... Bxb5 $15 31. Qe1 (31. Rxb5 $2 Nc3 $19) 31... Bc6) 31. Ra4 $11 {[%emt 0:02:47]} Re8 {[%emt 0:00:52]} 32. Qd1 {[%emt 0:00:02]} Nb4 $2 {[%emt 0:00:24]} (32... Kg8 $11 {and Black has nothing to worry.}) 33. Rxa7 $18 {[%emt 0:07:16]} Bxb5 {[%emt 0:00:15][%cal Ob4d3]} 34. Qxd6+ {[%emt 0:00:03]} Kg8 {[%emt 0:00:06]} 35. Kh2 {[%emt 0:00:58]} Bd3 $2 {[%emt 0:01:18]} ({Don't blunder} 35... Qc2 $2 36. Rg3 h4 (36... Qxc1 37. Qf6) 37. Rg5 $18) (35... Nc6) 36. Rc3 {[%emt 0:00:29]} Rc8 {[%emt 0:00:29]} (36... Re6 $142 37. Qxc5 Re2) 37. Be3 {[%emt 0:00:32]} (37. Rc7 $142 Rxc7 38. Qxc7) 37... Nd5 {[%emt 0:00:30]} 38. Rxc5 {[%emt 0:00:31]} Rxc5 {[%emt 0:00:20]} 39. Qxc5 {[%emt 0:00:15]} (39. Bxc5 Qxf4+ 40. Qxf4 Nxf4) 39... Be4 {[%emt 0:00:18]} 40. Ra4 {[%emt 0:00:46]} (40. Ra8+ $18 Kh7 41. Ra6) 40... Kh7 {[%emt 0:00:39]} ({Black should play} 40... Bxg2 $14 41. Ra8+ Kh7 42. Kxg2 Nxf4+ 43. Kf3 Nd5+ 44. Ke2 Nf4+ 45. Kd2 Qd3+ 46. Kc1 Qf1+ 47. Kc2 Qg2+ 48. Kc3 Qxa8 49. Bxf4 Qh1 (49... Qf3+ 50. Qe3 $14)) 41. Ra2 {[%emt 0:00:24]} Qg6 {[%emt 0:00:39]} 42. Bc1 {[%emt 0:00:31]} Nf6 {[%emt 0:00:35]} 43. Qf2 {[%emt 0:00:33]} Nd5 {[%emt 0:00:18]} 44. Qg3 {[%emt 0:00:16]} Qxg3+ {[%emt 0:00:40]} 45. Kxg3 {[%emt 0:00:02] KRB-KBN} Ne7 {[%emt 0:00:24]} 46. Kh4 {[%emt 0:01:09]} Bd5 {[%emt 0:00:38]} 47. Rd2 {[%emt 0:00:36]} g6 $2 {[%emt 0:00:30]} (47... f6 {might work better.} 48. Kxh5 Be4) 48. Kg5 {[%emt 0:00:20] Strongly threatening Ba3. White is clearly winning.} Be6 {[%emt 0:00:18]} 49. Bb2 {[%emt 0:00:27]} Ng8 {[%emt 0:00:31]} 50. Rd8 {[%emt 0:00:33] Weighted Error Value: White=0.25 (precise) /Black=0.39.  Loses game:     	---       	Black=1      Mistake:       	White=5     	Black=6      Inaccurate:     	White=2     	Black=5      OK:         	White=19    	Black=15     Best:        	White=4     	Black=2      Strong:       	White=1     	---} 1-0

[Event "GCT Superbet Romania 2024"]
[Site "Bucharest"]
[Date "2024.06.26"]
[Round "1.5"]
[White "Giri, Anish"]
[Black "So, Wesley"]
[Result "1/2-1/2"]
[ECO "E05"]
[WhiteElo "2745"]
[BlackElo "2757"]
[Annotator "TA"]
[PlyCount "59"]
[EventDate "2024.06.24"]
[EventType "tourn"]
[EventCountry "ROU"]
[SourceTitle "playchess.com"]
[Source "ChessBase"]
[SourceQuality "1"]
[TimeControl "7200+30"]

{[%evp 18,59,18,13,14,13,4,16,26,6,37,39,37,23,38,28,35,15,19,7,34,28,31,25,24,25,18,13,15,16,16,12,16,36,32,37,31,37,37,0,15,0,37,0]} 1. d4 {[%emt 0:00:03]} Nf6 {[%emt 0:00:26]} 2. c4 {[%emt 0:00:08]} e6 {[%emt 0:00:07]} 3. Nf3 {[%emt 0:00:05]} d5 {[%emt 0:00:08]} 4. g3 {[%emt 0:00:04]} Be7 {[%emt 0:02:20]} 5. Bg2 {[%emt 0:00:13]} O-O {[%emt 0:00:07]} 6. O-O {[%emt 0:00:07]} dxc4 {[%emt 0:00:04]} 7. Qc2 {[%emt 0:00:07]} a6 {[%emt 0:01:49]} 8. a4 {[%emt 0:00:17]} Bd7 {[%emt 0:00:04]} 9. Qxc4 {[%emt 0:00:06]} Bc6 {[%emt 0:00:04]} 10. Bf4 {[%emt 0:00:06]} a5 {[%emt 0:02:37]} 11. Nc3 {[%emt 0:02:56]} Nbd7 {[%emt 0:04:30]} 12. Qb3 {[%emt 0:11:14]} Bd6 {[%emt 0:08:47] The position is equal.} 13. Bd2 {[%emt 0:00:39]} Ne4 {[%emt 0:01:50]} 14. Nxe4 {[%emt 0:03:45]} Bxe4 {[%emt 0:02:12]} 15. Ng5 {[%emt 0:00:27]} Bxg2 {[%emt 0:01:14]} 16. Kxg2 {[%emt 0:01:06]} h6 {[%emt 0:08:24]} 17. Nf3 {[%emt 0:07:15]} b6 {[%emt 0:15:41]} 18. Rad1 {[%emt 0:05:35]} Qe7 {[%emt 0:05:17]} 19. e4 {[%emt 0:01:17]} Bb4 {[%emt 0:02:45]} 20. Bxb4 {[%emt 0:11:13]} Qxb4 {[%emt 0:01:05]} 21. Qxb4 {[%emt 0:20:08]} axb4 {[%emt 0:00:10]} 22. b3 {[%emt 0:00:09]} c5 {[%emt 0:06:54][%cal Oc5c4]} 23. Rc1 {[%emt 0:05:03]} cxd4 {[%emt 0:06:04]} 24. Nxd4 {[%emt 0:00:26]} Nc5 {[%emt 0:02:18]} 25. Rc4 {[%emt 0:01:11]} Rfd8 {[%emt 0:19:46]} 26. Rb1 {[%emt 0:16:20]} Rac8 {[%emt 0:02:08]} 27. Rbc1 {[%emt 0:00:16]} (27. Rxb4 $2 Nd3 (27... Nxe4 28. Nxe6 fxe6 29. Rxe4 $18) 28. Nxe6 fxe6 $19 (28... Nxb4 $2 29. Nxd8 Rxd8 30. Rc1 $19)) 27... Ra8 {[%emt 0:00:58][%cal Od8d4] [#] Strongly threatening ...Rxd4!} 28. Rb1 {[%emt 0:06:26]} (28. Rxb4 Nd3 (28... Nxe4 $2 29. Nc6 $18) 29. Rcc4 Nxb4 30. Rxb4 Rac8 $11) 28... Rac8 {[%emt 0:00:07]} 29. Rbc1 {[%emt 0:00:03] Threatens to win with a5.} (29. Rxb4 $2 {loses.} Nd3 (29... Nxe4 30. Nxe6 fxe6 31. Rxe4 $18) 30. Nxe6 fxe6 $19 (30... Nxb4 $2 31. Nxd8 Rxd8 32. Rc1 $19)) 29... Ra8 {[%emt 0:00:06][%cal Od8d4] And now ...Rxd4! would win.} 30. Rb1 {[%emt 0:00:36] Weighted Error Value: White=0.07 (flawless) /Black=0.04 (flawless) .  Inaccurate:     	White=1     	Black=2      OK:         	White=8     	Black=10} (30. Rxb4 Nd3 (30... Nxe4 $2 {is the wrong capture.} 31. Nc6 $18) 31. Rcc4 Nxb4 32. Rxb4 Rac8 $11) 1/2-1/2